[Event "NK 2022"]
[Site "Groningen, Netherlands"]
[Date "2022.12.23"]
[Round "5.1"]
[White "Reinderman, Dimitri"]
[Black "Warmerdam, Max"]
[Result "1/2-1/2"]
[TimeControl "40/90; 30 minutes + increment 30 seconds from start"]
[WhiteTitle "GM"]
[BlackTitle "GM"]
[WhiteFideId "1001302"]
[BlackFideId "1048104"]
[WhiteElo "2575"]
[BlackElo "2619"]

1. c4 {[%clk 01:30:59]} e5 {[%clk 01:30:50]} {[%emt 00:00:10]} 2. g3 {[%clk
01:31:11]} {[%emt 00:00:18]} c6 {[%clk 01:31:06]} {[%emt 00:00:14]} 3. Nf3
{[%clk 01:31:13]} {[%emt 00:00:28]} e4 {[%clk 01:31:13]} {[%emt 00:00:22]} 4.
Nd4 {[%clk 01:31:38]} {[%emt 00:00:06]} d5 {[%clk 01:31:27]} {[%emt 00:00:15]}
5. cxd5 {[%clk 01:31:41]} {[%emt 00:00:28]} Qxd5 {[%clk 01:31:50]} {[%emt
00:00:07]} 6. Nc2 {[%clk 01:32:05]} {[%emt 00:00:06]} Nf6 {[%clk 01:32:12]}
{[%emt 00:00:08]} 7. Bg2 {[%clk 01:31:25]} {[%emt 00:01:10]} Qh5 {[%clk
01:31:56]} {[%emt 00:00:45]} 8. h3 {[%clk 01:29:50]} {[%emt 00:02:05]} Qg6
{[%clk 01:28:46]} {[%emt 00:03:40]} 9. Ne3 {[%clk 01:24:22]} {[%emt 00:05:58]}
Bd6 {[%clk 01:24:35]} {[%emt 00:04:40]} 10. Nc3 {[%clk 01:24:30]} {[%emt
00:00:23]} O-O {[%clk 01:23:56]} {[%emt 00:01:08]} 11. b3 {[%clk 01:22:33]}
{[%emt 00:02:27]} Re8 {[%clk 01:22:16]} {[%emt 00:02:09]} 12. Bb2 {[%clk
01:22:02]} {[%emt 00:01:02]} Na6 {[%clk 01:15:18]} {[%emt 00:07:28]} 13. a3
{[%clk 01:20:00]} {[%emt 00:02:33]} Nc7 {[%clk 01:12:48]} {[%emt 00:02:59]} 14.
Qc2 {[%clk 00:58:13]} {[%emt 00:22:18]} Bd7 {[%clk 00:59:23]} {[%emt 00:13:55]}
15. b4 {[%clk 00:53:36]} {[%emt 00:05:07]} b5 {[%clk 00:51:27]} {[%emt
00:08:25]} 16. O-O {[%clk 00:51:49]} {[%emt 00:02:18]} a5 {[%clk 00:48:07]}
{[%emt 00:03:51]} 17. bxa5 {[%clk 00:37:11]} {[%emt 00:15:08]} Rxa5 {[%clk
00:48:19]} {[%emt 00:00:17]} 18. Rfd1 {[%clk 00:37:21]} {[%emt 00:00:20]} b4
{[%clk 00:38:17]} {[%emt 00:10:32]} 19. axb4 {[%clk 00:33:32]} {[%emt
00:04:19]} Rg5 {[%clk 00:35:27]} {[%emt 00:03:19]} 20. Ra5 {[%clk 00:31:15]}
{[%emt 00:02:47]} Ncd5 {[%clk 00:29:45]} {[%emt 00:06:12]} 21. Ncxd5 {[%clk
00:30:28]} {[%emt 00:01:18]} Nxd5 {[%clk 00:29:54]} {[%emt 00:00:21]} 22. Nxd5
{[%clk 00:22:48]} {[%emt 00:08:10]} cxd5 {[%clk 00:30:18]} {[%emt 00:00:05]} 23.
Ra6 {[%clk 00:22:44]} {[%emt 00:00:34]} e3 {[%clk 00:29:43]} {[%emt 00:01:05]}
24. Qxg6 {[%clk 00:19:16]} {[%emt 00:03:59]} exf2+ {[%clk 00:29:58]} {[%emt
00:00:15]} 25. Kxf2 {[%clk 00:19:06]} {[%emt 00:00:40]} Bxg3+ {[%clk 00:30:06]}
{[%emt 00:00:23]} 26. Kf1 {[%clk 00:10:48]} {[%emt 00:08:48]} fxg6 {[%clk
00:09:58]} {[%emt 00:20:37]} 27. Ra5 {[%clk 00:10:19]} {[%emt 00:00:59]} Be6
{[%clk 00:07:14]} {[%emt 00:03:13]} 28. Bd4 {[%clk 00:06:49]} {[%emt 00:04:00]}
Bh2 {[%clk 00:01:21]} {[%emt 00:06:23]} 29. Ra3 {[%clk 00:06:10]} {[%emt
00:01:09]} Rb8 {[%clk 00:01:00]} {[%emt 00:00:51]} 30. Bc5 {[%clk 00:05:19]}
{[%emt 00:01:21]} Rf5+ {[%clk 00:01:00]} {[%emt 00:00:30]} 31. Rf3 {[%clk
00:05:08]} {[%emt 00:00:41]} Rxf3+ {[%clk 00:01:25]} {[%emt 00:00:05]} 32. exf3
{[%clk 00:05:35]} {[%emt 00:00:03]} Bf4 {[%clk 00:00:42]} {[%emt 00:01:13]} 33.
Ke2 {[%clk 00:05:17]} {[%emt 00:00:49]} Bf5 {[%clk 00:00:42]} {[%emt 00:00:30]}
34. Bf1 {[%clk 00:03:50]} {[%emt 00:01:56]} Ra8 {[%clk 00:00:52]} {[%emt
00:00:20]} 35. Be3 {[%clk 00:03:09]} {[%emt 00:01:12]} Bg3 {[%clk 00:00:44]}
{[%emt 00:00:39]} 36. f4 {[%clk 00:02:07]} {[%emt 00:01:31]} Ra4 {[%clk
00:01:10]} {[%emt 00:00:04]} 37. Kf3 {[%clk 00:01:22]} {[%emt 00:01:15]} Bh4
{[%clk 00:01:36]} {[%emt 00:00:04]} 38. Bc5 {[%clk 00:00:50]} {[%emt 00:01:02]}
Ra3+ {[%clk 00:01:57]} {[%emt 00:00:09]} 39. d3 {[%clk 00:01:04]} {[%emt
00:00:16]} Bf6 {[%clk 00:01:28]} {[%emt 00:00:58]} 40. Ke3 {[%clk 00:01:10]}
{[%emt 00:00:25]} Rb3 {[%clk 00:01:55]} {[%emt 00:00:03]} 41. Bg2 {[%clk
00:27:31]} {[%emt 00:04:08]} Be6 {[%clk 00:29:29]} {[%emt 00:02:56]} 42. Rd2
{[%clk 00:26:58]} {[%emt 00:01:03]} h5 {[%clk 00:27:33]} {[%emt 00:02:26]} 43.
Ra2 {[%clk 00:22:23]} {[%emt 00:05:06]} Kh7 {[%clk 00:26:24]} {[%emt 00:01:38]}
44. Kd2 {[%clk 00:14:17]} {[%emt 00:08:37]} Bf5 {[%clk 00:18:40]} {[%emt
00:08:14]} 45. Bf1 {[%clk 00:14:08]} {[%emt 00:00:39]} Rb1 {[%clk 00:12:41]}
{[%emt 00:06:29]} 46. Bg2 {[%clk 00:14:12]} {[%emt 00:00:26]} Rb3 {[%clk
00:13:07]} {[%emt 00:00:04]} 47. Bf1 {[%clk 00:14:35]} {[%emt 00:00:07]} Rb1
{[%clk 00:12:52]} {[%emt 00:00:44]} 48. Bg2 {[%clk 00:15:00]} {[%emt 00:00:05]}
1/2-1/2

[Event "NK 2022"]
[Site "Groningen, Netherlands"]
[Date "2022.12.23"]
[Round "5.2"]
[White "L'Ami, Erwin"]
[Black "Tiviakov, Sergei"]
[Result "1-0"]
[TimeControl "40/90; 30 minutes + increment 30 seconds from start"]
[WhiteTitle "GM"]
[BlackTitle "GM"]
[BlackFideId "1008013"]
[WhiteElo "2627"]
[BlackElo "2562"]

1. d4 {[%clk 01:30:56]} {[%emt 00:00:03]} Nf6 {[%clk 01:30:55]} {[%emt
00:00:05]} 2. c4 {[%clk 01:31:16]} {[%emt 00:00:10]} e6 {[%clk 01:31:21]}
{[%emt 00:00:04]} 3. Nf3 {[%clk 01:31:36]} {[%emt 00:00:10]} b6 {[%clk
01:31:47]} {[%emt 00:00:04]} 4. g3 {[%clk 01:31:56]} {[%emt 00:00:09]} Bb4+
{[%clk 01:32:14]} {[%emt 00:00:05]} 5. Bd2 {[%clk 01:31:50]} {[%emt 00:00:36]}
Be7 {[%clk 01:32:38]} {[%emt 00:00:06]} 6. Bg2 {[%clk 01:32:09]} {[%emt
00:00:10]} c6 {[%clk 01:33:05]} {[%emt 00:00:04]} 7. Bc3 {[%clk 01:29:08]}
{[%emt 00:03:31]} d5 {[%clk 01:31:28]} {[%emt 00:02:07]} 8. Nbd2 {[%clk
01:28:51]} {[%emt 00:00:47]} Nbd7 {[%clk 01:26:16]} {[%emt 00:05:43]} 9. O-O
{[%clk 01:27:28]} {[%emt 00:01:52]} O-O {[%clk 01:22:26]} {[%emt 00:04:20]} 10.
b4 {[%clk 01:22:20]} {[%emt 00:05:38]} dxc4 {[%clk 01:13:45]} {[%emt 00:09:12]}
11. Nxc4 {[%clk 01:22:19]} {[%emt 00:00:31]} Nd5 {[%clk 01:14:07]} {[%emt
00:00:08]} 12. Qb3 {[%clk 01:22:30]} {[%emt 00:00:18]} Nxc3 {[%clk 01:09:09]}
{[%emt 00:05:29]} 13. Qxc3 {[%clk 01:22:37]} {[%emt 00:00:23]} Bb7 {[%clk
01:09:37]} {[%emt 00:00:02]} 14. Nfe5 {[%clk 01:15:19]} {[%emt 00:07:47]} Rc8
{[%clk 01:09:58]} {[%emt 00:00:09]} 15. Rfd1 {[%clk 01:12:10]} {[%emt
00:03:38]} Nf6 {[%clk 01:08:21]} {[%emt 00:02:08]} 16. Qb3 {[%clk 01:07:32]}
{[%emt 00:05:09]} Qc7 {[%clk 00:50:09]} {[%emt 00:18:42]} 17. a4 {[%clk
01:02:20]} {[%emt 00:05:41]} Nd5 {[%clk 00:47:58]} {[%emt 00:02:41]} 18. Nd3
{[%clk 01:02:12]} {[%emt 00:00:38]} a5 {[%clk 00:33:41]} {[%emt 00:14:48]} 19.
bxa5 {[%clk 00:56:58]} {[%emt 00:05:44]} bxa5 {[%clk 00:33:49]} {[%emt
00:00:23]} 20. Nxa5 {[%clk 00:40:25]} {[%emt 00:17:04]} Ba6 {[%clk 00:23:22]}
{[%emt 00:10:56]} 21. Nc4 {[%clk 00:39:28]} {[%emt 00:01:26]} c5 {[%clk
00:23:05]} {[%emt 00:00:48]} 22. Nxc5 {[%clk 00:34:22]} {[%emt 00:05:36]} Bxc5
{[%clk 00:22:14]} {[%emt 00:01:21]} 23. dxc5 {[%clk 00:34:25]} {[%emt
00:00:26]} Rb8 {[%clk 00:11:06]} {[%emt 00:11:40]} 24. Nb6 {[%clk 00:30:57]}
{[%emt 00:03:57]} Bxe2 {[%clk 00:11:24]} {[%emt 00:00:11]} 25. Rdc1 {[%clk
00:28:25]} {[%emt 00:03:02]} Nxb6 {[%clk 00:11:35]} {[%emt 00:00:20]} 26. cxb6
{[%clk 00:28:38]} {[%emt 00:00:16]} Qxb6 {[%clk 00:12:02]} {[%emt 00:00:04]} 27.
Qxb6 {[%clk 00:27:53]} {[%emt 00:01:15]} Rxb6 {[%clk 00:12:31]} {[%emt
00:00:02]} 28. a5 {[%clk 00:27:38]} {[%emt 00:00:45]} Rd6 {[%clk 00:12:52]}
{[%emt 00:00:10]} 29. Rc6 {[%clk 00:19:29]} {[%emt 00:08:38]} Rfd8 {[%clk
00:09:41]} {[%emt 00:03:41]} 30. Rxd6 {[%clk 00:18:53]} {[%emt 00:01:06]} Rxd6
{[%clk 00:10:09]} {[%emt 00:00:02]} 31. Bf1 {[%clk 00:18:29]} {[%emt 00:00:54]}
Bxf1 {[%clk 00:03:02]} {[%emt 00:07:38]} 32. Kxf1 {[%clk 00:18:48]} {[%emt
00:00:10]} Ra6 {[%clk 00:02:27]} {[%emt 00:01:06]} 33. Ke2 {[%clk 00:18:56]}
{[%emt 00:00:22]} Kf8 {[%clk 00:02:53]} {[%emt 00:00:04]} 34. Kd3 {[%clk
00:18:47]} {[%emt 00:00:39]} Ke7 {[%clk 00:03:20]} {[%emt 00:00:03]} 35. Kc4
{[%clk 00:18:59]} {[%emt 00:00:17]} Kd6 {[%clk 00:03:14]} {[%emt 00:00:37]} 36.
Kb5 {[%clk 00:19:06]} {[%emt 00:00:23]} Ra8 {[%clk 00:03:37]} {[%emt 00:00:07]}
37. a6 {[%clk 00:18:44]} {[%emt 00:00:52]} Rb8+ {[%clk 00:04:04]} {[%emt
00:00:03]} 38. Ka5 {[%clk 00:18:18]} {[%emt 00:00:55]} Ra8 {[%clk 00:04:33]}
{[%emt 00:00:02]} 39. Rb1 {[%clk 00:17:21]} {[%emt 00:01:26]} 1-0

[Event "NK 2022"]
[Site "Groningen, Netherlands"]
[Date "2022.12.23"]
[Round "5.3"]
[White "Pruijssers, Roeland"]
[Black "Van Den Doel, Erik"]
[Result "1-0"]
[TimeControl "40/90; 30 minutes + increment 30 seconds from start"]
[WhiteTitle "GM"]
[BlackTitle "GM"]
[WhiteFideId "1013068"]
[WhiteElo "2538"]
[BlackElo "2582"]

1. e4 {[%clk 01:29:48]} {[%emt 00:01:11]} e5 {[%clk 01:30:52]} {[%emt
00:00:08]} 2. Nf3 {[%clk 01:30:11]} {[%emt 00:00:07]} Nc6 {[%clk 01:31:18]}
{[%emt 00:00:04]} 3. Bc4 {[%clk 01:30:35]} {[%emt 00:00:06]} Bc5 {[%clk
01:31:44]} {[%emt 00:00:05]} 4. O-O {[%clk 01:30:33]} {[%emt 00:00:31]} Nf6
{[%clk 01:32:09]} {[%emt 00:00:05]} 5. d3 {[%clk 01:30:57]} {[%emt 00:00:05]}
d6 {[%clk 01:29:54]} {[%emt 00:02:46]} 6. c3 {[%clk 01:30:37]} {[%emt
00:00:51]} a6 {[%clk 01:30:00]} {[%emt 00:00:24]} 7. a4 {[%clk 01:30:14]}
{[%emt 00:00:52]} O-O {[%clk 01:30:01]} {[%emt 00:00:29]} 8. h3 {[%clk
01:28:55]} {[%emt 00:01:49]} Ba7 {[%clk 01:28:53]} {[%emt 00:01:39]} 9. Re1
{[%clk 01:26:44]} {[%emt 00:02:40]} h6 {[%clk 01:28:51]} {[%emt 00:00:33]} 10.
Nbd2 {[%clk 01:24:49]} {[%emt 00:02:25]} Ne7 {[%clk 01:28:29]} {[%emt
00:00:52]} 11. d4 {[%clk 01:18:36]} {[%emt 00:06:43]} Nc6 {[%clk 01:27:33]}
{[%emt 00:01:26]} 12. dxe5 {[%clk 01:12:29]} {[%emt 00:06:37]} Nxe5 {[%clk
01:21:52]} {[%emt 00:06:11]} 13. Nxe5 {[%clk 01:09:46]} {[%emt 00:03:13]} dxe5
{[%clk 01:22:17]} {[%emt 00:00:05]} 14. Qe2 {[%clk 01:10:08]} {[%emt 00:00:08]}
Re8 {[%clk 01:02:02]} {[%emt 00:20:46]} 15. Nf1 {[%clk 01:07:25]} {[%emt
00:03:12]} Be6 {[%clk 01:01:36]} {[%emt 00:00:57]} 16. Ng3 {[%clk 01:05:01]}
{[%emt 00:02:54]} Qd7 {[%clk 00:59:23]} {[%emt 00:02:44]} 17. Bxe6 {[%clk
00:51:53]} {[%emt 00:13:37]} Qxe6 {[%clk 00:52:20]} {[%emt 00:07:34]} 18. Qc2
{[%clk 00:45:43]} {[%emt 00:06:39]} Rad8 {[%clk 00:44:01]} {[%emt 00:08:49]} 19.
Be3 {[%clk 00:45:53]} {[%emt 00:00:19]} Bxe3 {[%clk 00:43:32]} {[%emt
00:01:00]} 20. Rxe3 {[%clk 00:46:17]} {[%emt 00:00:06]} Rd7 {[%clk 00:33:39]}
{[%emt 00:10:24]} 21. Rd1 {[%clk 00:44:20]} {[%emt 00:02:26]} Red8 {[%clk
00:33:50]} {[%emt 00:00:19]} 22. Red3 {[%clk 00:42:56]} {[%emt 00:01:53]} g6
{[%clk 00:25:19]} {[%emt 00:09:01]} 23. Rxd7 {[%clk 00:34:13]} {[%emt
00:09:13]} Rxd7 {[%clk 00:25:44]} {[%emt 00:00:05]} 24. Rxd7 {[%clk 00:32:50]}
{[%emt 00:01:52]} Qxd7 {[%clk 00:23:28]} {[%emt 00:02:47]} 25. Nf1 {[%clk
00:30:27]} {[%emt 00:02:52]} Kg7 {[%clk 00:22:16]} {[%emt 00:01:43]} 26. Kh2
{[%clk 00:18:49]} {[%emt 00:12:07]} b5 {[%clk 00:15:38]} {[%emt 00:07:09]} 27.
axb5 {[%clk 00:18:11]} {[%emt 00:01:09]} axb5 {[%clk 00:16:03]} {[%emt
00:00:05]} 28. b4 {[%clk 00:15:40]} {[%emt 00:03:00]} c5 {[%clk 00:11:53]}
{[%emt 00:04:41]} 29. bxc5 {[%clk 00:15:16]} {[%emt 00:00:54]} Qc6 {[%clk
00:12:04]} {[%emt 00:00:19]} 30. f3 {[%clk 00:15:38]} {[%emt 00:00:07]} Qxc5
{[%clk 00:11:11]} {[%emt 00:01:24]} 31. Qd2 {[%clk 00:16:05]} {[%emt 00:00:03]}
Nh5 {[%clk 00:10:55]} {[%emt 00:00:46]} 32. g3 {[%clk 00:12:23]} {[%emt
00:04:11]} Nf6 {[%clk 00:10:49]} {[%emt 00:00:36]} 33. Ne3 {[%clk 00:12:41]}
{[%emt 00:00:12]} Nd7 {[%clk 00:09:01]} {[%emt 00:02:19]} 34. Kg2 {[%clk
00:10:08]} {[%emt 00:03:03]} Nf6 {[%clk 00:06:34]} {[%emt 00:02:57]} 35. h4
{[%clk 00:08:56]} {[%emt 00:01:41]} Qc6 {[%clk 00:04:34]} {[%emt 00:02:30]} 36.
Kf2 {[%clk 00:03:33]} {[%emt 00:05:52]} h5 {[%clk 00:02:29]} {[%emt 00:02:36]}
37. Ke2 {[%clk 00:03:34]} {[%emt 00:00:28]} Qa6 {[%clk 00:02:43]} {[%emt
00:00:16]} 38. Qd3 {[%clk 00:02:43]} {[%emt 00:01:21]} Qa2+ {[%clk 00:02:53]}
{[%emt 00:00:20]} 39. Qd2 {[%clk 00:02:07]} {[%emt 00:01:06]} Qa6 {[%clk
00:01:45]} {[%emt 00:01:38]} 40. Ke1 {[%clk 00:00:50]} {[%emt 00:01:47]} Qa1+
{[%clk 00:00:47]} {[%emt 00:01:29]} 41. Nd1 {[%clk 00:30:08]} {[%emt 00:01:11]}
Qa7 {[%clk 00:28:55]} {[%emt 00:02:22]} 42. Ke2 {[%clk 00:24:02]} {[%emt
00:06:36]} Qa6 {[%clk 00:25:33]} {[%emt 00:03:53]} 43. Kf2 {[%clk 00:20:01]}
{[%emt 00:04:31]} Qc6 {[%clk 00:20:26]} {[%emt 00:05:35]} 44. Ne3 {[%clk
00:19:58]} {[%emt 00:00:35]} Qb6 {[%clk 00:15:57]} {[%emt 00:04:59]} 45. Qd1
{[%clk 00:18:40]} {[%emt 00:01:47]} Qc5 {[%clk 00:16:03]} {[%emt 00:00:25]} 46.
Qd8 {[%clk 00:15:31]} {[%emt 00:03:38]} Qa3 {[%clk 00:12:35]} {[%emt 00:03:58]}
47. Qc7 {[%clk 00:11:53]} {[%emt 00:04:07]} Qb2+ {[%clk 00:06:03]} {[%emt
00:07:03]} 48. Ke1 {[%clk 00:12:06]} {[%emt 00:00:16]} Qg2 {[%clk 00:05:01]}
{[%emt 00:01:33]} 49. Nxg2 {[%clk 00:12:22]} {[%emt 00:00:13]} 1-0

[Event "NK 2022"]
[Site "Groningen, Netherlands"]
[Date "2022.12.23"]
[Round "5.4"]
[White "Van Foreest, Lucas"]
[Black "Kevlishvili, Robby"]
[Result "0-1"]
[TimeControl "40/90; 30 minutes + increment 30 seconds from start"]
[WhiteTitle "GM"]
[BlackTitle "GM"]
[WhiteFideId "1039792"]
[BlackFideId "1040634"]
[WhiteElo "2577"]
[BlackElo "2530"]

1. d4 {[%clk 01:30:57]} {[%emt 00:00:02]} d5 {[%clk 01:30:53]} {[%emt
00:00:08]} 2. c4 {[%clk 01:31:18]} {[%emt 00:00:09]} c6 {[%clk 01:31:17]}
{[%emt 00:00:05]} 3. Nf3 {[%clk 01:31:40]} {[%emt 00:00:04]} Nf6 {[%clk
01:31:44]} {[%emt 00:00:08]} 4. Nc3 {[%clk 01:31:58]} {[%emt 00:00:10]} e6
{[%clk 01:32:06]} {[%emt 00:00:08]} 5. Bg5 {[%clk 01:32:21]} {[%emt 00:00:08]}
h6 {[%clk 01:32:27]} {[%emt 00:00:09]} 6. Bh4 {[%clk 01:32:39]} {[%emt
00:00:13]} dxc4 {[%clk 01:32:47]} {[%emt 00:00:10]} 7. e4 {[%clk 01:33:02]}
{[%emt 00:00:07]} g5 {[%clk 01:33:11]} {[%emt 00:00:05]} 8. Bg3 {[%clk
01:33:27]} {[%emt 00:00:04]} b5 {[%clk 01:33:37]} {[%emt 00:00:05]} 9. Be2
{[%clk 01:33:44]} {[%emt 00:00:13]} Bb7 {[%clk 01:33:56]} {[%emt 00:00:11]} 10.
Qc2 {[%clk 01:33:47]} {[%emt 00:00:27]} Nbd7 {[%clk 01:33:14]} {[%emt
00:01:12]} 11. Rd1 {[%clk 01:33:14]} {[%emt 00:01:03]} Qb6 {[%clk 01:23:43]}
{[%emt 00:10:01]} 12. Ne5 {[%clk 01:32:30]} {[%emt 00:01:14]} Bg7 {[%clk
01:20:35]} {[%emt 00:03:38]} 13. b3 {[%clk 01:15:12]} {[%emt 00:17:49]} cxb3
{[%clk 01:17:33]} {[%emt 00:03:31]} 14. axb3 {[%clk 01:15:35]} {[%emt
00:00:07]} Rd8 {[%clk 01:11:43]} {[%emt 00:06:20]} 15. h4 {[%clk 01:06:31]}
{[%emt 00:09:34]} g4 {[%clk 00:57:56]} {[%emt 00:14:18]} 16. O-O {[%clk
01:02:22]} {[%emt 00:04:39]} Nh5 {[%clk 00:46:37]} {[%emt 00:11:48]} 17. Nxd7
{[%clk 00:59:07]} {[%emt 00:03:46]} Rxd7 {[%clk 00:47:01]} {[%emt 00:00:05]} 18.
Be5 {[%clk 00:59:22]} {[%emt 00:00:14]} Rxd4 {[%clk 00:45:40]} {[%emt
00:01:52]} 19. Bxg7 {[%clk 00:42:13]} {[%emt 00:17:39]} Nxg7 {[%clk 00:44:55]}
{[%emt 00:01:14]} 20. Rxd4 {[%clk 00:41:50]} {[%emt 00:00:53]} Qxd4 {[%clk
00:45:20]} {[%emt 00:00:05]} 21. Bxg4 {[%clk 00:38:20]} {[%emt 00:04:00]} O-O
{[%clk 00:44:58]} {[%emt 00:00:52]} 22. Rd1 {[%clk 00:38:10]} {[%emt 00:00:39]}
Qe5 {[%clk 00:44:52]} {[%emt 00:00:36]} 23. Rd7 {[%clk 00:37:43]} {[%emt
00:00:58]} Rb8 {[%clk 00:39:26]} {[%emt 00:05:55]} 24. Qd2 {[%clk 00:38:04]}
{[%emt 00:00:08]} b4 {[%clk 00:37:37]} {[%emt 00:02:20]} 25. Na4 {[%clk
00:38:19]} {[%emt 00:00:16]} c5 {[%clk 00:37:41]} {[%emt 00:00:25]} 26. Bf3
{[%clk 00:20:17]} {[%emt 00:18:32]} Bc6 {[%clk 00:27:44]} {[%emt 00:10:28]} 27.
Rxa7 {[%clk 00:20:32]} {[%emt 00:00:15]} c4 {[%clk 00:28:08]} {[%emt 00:00:05]}
28. Qe3 {[%clk 00:18:07]} {[%emt 00:02:55]} Bxa4 {[%clk 00:26:04]} {[%emt
00:02:35]} 29. Rxa4 {[%clk 00:18:31]} {[%emt 00:00:06]} c3 {[%clk 00:26:19]}
{[%emt 00:00:14]} 30. Ra2 {[%clk 00:18:46]} {[%emt 00:00:15]} Rc8 {[%clk
00:24:29]} {[%emt 00:02:20]} 31. Rc2 {[%clk 00:17:17]} {[%emt 00:01:58]} Ra8
{[%clk 00:23:54]} {[%emt 00:01:06]} 32. g3 {[%clk 00:17:45]} {[%emt 00:00:02]}
Ra1+ {[%clk 00:23:33]} {[%emt 00:00:50]} 33. Kg2 {[%clk 00:17:58]} {[%emt
00:00:16]} Rb1 {[%clk 00:23:52]} {[%emt 00:00:12]} 34. Qxh6 {[%clk 00:18:07]}
{[%emt 00:00:21]} Rxb3 {[%clk 00:22:18]} {[%emt 00:02:04]} 35. Rc1 {[%clk
00:18:33]} {[%emt 00:00:04]} Ra3 {[%clk 00:22:07]} {[%emt 00:00:41]} 36. Qg5
{[%clk 00:12:30]} {[%emt 00:06:33]} Qxg5 {[%clk 00:22:01]} {[%emt 00:00:36]} 37.
hxg5 {[%clk 00:12:58]} {[%emt 00:00:02]} Ne8 {[%clk 00:22:05]} {[%emt
00:00:26]} 38. Bd1 {[%clk 00:09:52]} {[%emt 00:03:36]} b3 {[%clk 00:20:43]}
{[%emt 00:01:52]} 39. Rxc3 {[%clk 00:03:17]} {[%emt 00:07:05]} b2 {[%clk
00:21:08]} {[%emt 00:00:05]} 40. Rxa3 {[%clk 00:03:42]} {[%emt 00:00:06]} b1=Q
{[%clk 00:21:31]} {[%emt 00:00:07]} 41. Bf3 {[%clk 00:03:55]} {[%emt 00:00:16]}
Nd6 {[%clk 00:21:49]} {[%emt 00:00:12]} 42. g6 {[%clk 00:04:06]} {[%emt
00:00:20]} fxg6 {[%clk 00:21:46]} {[%emt 00:00:33]} 43. Ra6 {[%clk 00:03:52]}
{[%emt 00:00:44]} Qd3 {[%clk 00:22:08]} {[%emt 00:00:07]} 44. Ra8+ {[%clk
00:04:10]} {[%emt 00:00:13]} Kg7 {[%clk 00:22:30]} {[%emt 00:00:08]} 45. Rd8
{[%clk 00:04:09]} {[%emt 00:00:31]} 0-1